bitfinex/quotes_ETHUSD_20251015
["timestamp","ask_amount","ask_price","bid_price","bid_amount"]
[1760551540279,2.69831416,3984.2,3984.0,10.45542812]
[1760551540280,0.001,3984.2,3984.0,10.45542812]
[1760551540592,0.1874,3984.1,3983.0,12.96609669]
[1760551540767,0.1874,3984.0,3983.0,10.45542812]
[1760551540964,0.2308,3983.9,3983.1,2.77354281]
[1760551541146,0.2308,3983.9,3983.1,2.89801134]
[1760551541490,0.001,3983.8,3983.5,0.6336]
[1760551541870,0.2322,3983.7,3983.2,0.6336]
[1760551542070,0.4186,3983.7,3983.4,0.6336]
[1760551542286,0.001,3983.8,3983.4,0.6336]
[1760551542483,0.001,3983.8,3983.6,2.3616]
[1760551542682,0.001,3983.8,3983.6,0.6336]
[1760551542891,0.001,3983.8,3983.5,0.4344]
[1760551543094,0.001,3983.8,3983.7,4.87182918]
[1760551543454,0.001,3983.8,3983.7,5.30622918]
[1760551544399,0.001,3984.6,3984.5,4.87132518]
[1760551544858,0.001,3984.6,3984.5,5.30572518]
[1760551545477,0.4091,3986.4,3985.7,0.6336]
[1760551545706,0.117,3986.3,3985.8,0.37762325]
[1760551546007,0.4074,3986.2,3985.8,0.37762325]
[1760551546717,0.4074,3986.2,3985.8,0.6336]
[1760551546885,0.4074,3986.1,3985.0,1.728]
[1760551547087,0.1199,3985.9,3985.1,0.6336]
[1760551547408,0.1199,3985.9,3985.4,2.3616]
[1760551547610,0.1199,3985.9,3985.5,0.48708104]
[1760551548304,0.1199,3985.9,3985.5,2.21508104]
[1760551548503,0.5244,3985.9,3985.5,0.48708104]
[1760551549278,0.4045,3985.8,3984.9,2.50943674]
[1760551549505,0.4045,3985.7,3985.1,0.6336]
[1760551549825,2.91347793,3985.7,3984.3,10.45542812]
[1760551550030,2.5092047,3985.4,3984.6,2.50965781]
[1760551550237,0.4045,3985.6,3984.3,10.45542812]
[1760551550402,2.50896956,3985.7,3984.4,1.04554281]
[1760551550721,2.50928494,3985.2,3984.4,2.50974871]
[1760551550924,0.1199,3985.9,3985.5,0.1248]
[1760551551100,0.1199,3985.9,3984.3,10.45542812]
[1760551551101,2.50902727,3985.7,3985.2,0.6336]
[1760551551306,0.4045,3985.6,3984.9,2.5094701]
[1760551551498,0.4045,3985.6,3985.1,0.6336]
[1760551551692,0.1199,3985.9,3985.5,0.1248]
[1760551551892,2.91342259,3985.8,3985.1,3.14289758]
[1760551552098,0.4045,3985.8,3985.3,0.6336]
[1760551552395,0.1199,3985.9,3985.7,0.1248]
[1760551552606,2.62876981,3985.9,3985.7,0.1248]
[1760551552806,0.1199,3985.9,3985.7,0.1248]
[1760551553020,0.5244,3985.9,3985.7,0.1248]
[1760551553544,0.1199,3985.9,3985.8,0.6336]
[1760551553754,3.0301494,3986.3,3985.8,0.65868906]
[1760551553910,0.4017,3986.2,3985.8,0.96285651]
[1760551554107,0.4017,3986.2,3985.8,0.6336]
[1760551554429,0.4017,3986.2,3986.1,0.7584]
[1760551554806,2.91035485,3986.2,3986.1,0.7584]
[1760551555006,0.4017,3986.2,3986.1,0.7584]
[1760551556646,2.91035485,3986.2,3986.1,0.7584]
[1760551556829,2.91035485,3986.2,3986.1,0.1248]
[1760551558124,0.4017,3986.2,3986.1,0.1248]
[1760551558324,2.91035485,3986.2,3986.1,0.1248]
[1760551558524,2.91135485,3986.2,3986.1,0.1248]
[1760551560855,2.50924133,3985.3,3984.6,1.75509662]
[1760551561057,2.59004035,3985.2,3984.7,0.42648089]
[1760551561262,0.001,3986.2,3985.0,1.728]
[1760551561461,0.001,3986.2,3985.5,0.6336]
[1760551561663,0.001,3986.2,3985.3,0.6336]
[1760551561853,0.001,3986.2,3986.1,3.14231779]
[1760551562232,0.001,3986.2,3986.1,5.58160496]
[1760551562463,0.001,3986.2,3986.1,6.36555883]
[1760551563057,0.001,3986.2,3986.1,5.90045883]
[1760551563362,0.001,3986.2,3986.1,5.67935883]
[1760551563578,0.001,3986.2,3986.1,0.6336]
[1760551563806,0.4378,3986.2,3986.1,0.6336]
[1760551564073,0.001,3986.2,3986.1,0.6336]
[1760551564445,0.001,3986.2,3986.1,3.16740496]
[1760551564747,0.001,3986.2,3986.1,5.55651779]
[1760551565058,0.001,3986.2,3986.1,6.36304942]
[1760551567334,0.001,3986.2,3986.1,5.89794942]
[1760551567875,0.001,3986.2,3986.1,5.67684942]
[1760551568167,0.001,3986.2,3986.1,5.89794942]
[1760551568343,0.001,3986.2,3986.1,6.36304942]
[1760551570063,0.001,3986.6,3986.5,3.14206607]
[1760551570254,0.001,3986.6,3986.5,5.60792721]
[1760551570453,0.001,3986.6,3986.5,4.87006607]
[1760551570692,0.001,3986.6,3986.5,4.23646607]
[1760551570988,0.001,3986.6,3986.5,4.36126607]
[1760551571197,0.001,3986.6,3986.5,14.81669419]
[1760551571348,0.001,3986.6,3986.5,15.79059419]
[1760551571548,0.001,3986.6,3986.5,17.62051065]
[1760551573450,0.001,3986.6,3986.5,17.7495485]
[1760551574156,0.001,3986.6,3986.5,17.2844485]
[1760551574486,0.001,3986.6,3986.5,17.7495485]
[1760551574704,0.001,3986.6,3986.5,17.15541065]
[1760551574989,0.001,3986.6,3986.5,6.06638253]
[1760551575288,0.001,3986.6,3986.5,1.728]
[1760551575489,0.001,3986.6,3986.5,15.15699419]
[1760551575690,0.001,3986.6,3986.5,15.32549419]
[1760551576877,0.001,3986.6,3986.5,15.79059419]
[1760551577472,0.001,3986.6,3986.5,15.32549419]
[1760551577801,0.001,3986.6,3986.5,17.14373176]
[1760551577957,0.001,3986.6,3986.5,16.51013176]
[1760551578166,0.001,3986.6,3986.5,17.14373176]
[1760551578488,0.001,3986.6,3986.5,6.68830364]
[1760551578683,0.001,3986.6,3986.5,4.23646607]
[1760551578902,0.361,3986.6,3986.5,4.23646607]
[1760551579105,0.001,3986.6,3986.5,4.87006607]
[1760551580313,0.001,3986.6,3986.5,5.33516607]
[1760551580617,0.001,3986.6,3986.5,7.90916607]
[1760551580781,0.001,3986.6,3986.5,7.40467396]
[1760551581410,0.001,3986.6,3986.5,6.43077396]
[1760551581574,0.001,3986.6,3986.5,10.08687396]
[1760551581774,0.001,3986.6,3986.5,7.06437396]
[1760551582201,0.001,3986.6,3986.5,7.51287396]
[1760551582799,0.001,3986.6,3986.5,10.08687396]
[1760551583027,0.001,3987.0,3986.9,3.1418144]
[1760551583174,0.001,3987.0,3986.9,15.78711084]
[1760551583380,0.001,3987.0,3986.9,16.3353287]
[1760551583881,0.001,3987.0,3986.9,18.9093287]
[1760551584088,0.001,3987.0,3986.9,16.3353287]
[1760551584288,0.001,3987.0,3986.9,15.8868287]
[1760551584676,0.001,3987.0,3986.9,16.3353287]
[1760551584879,0.001,3987.0,3986.9,18.9083287]
[1760551585284,0.001,3987.0,3986.9,16.3353287]
[1760551585484,0.001,3987.0,3986.9,18.9083287]
[1760551585981,0.001,3987.0,3986.9,16.3353287]
[1760551586184,0.001,3987.0,3986.9,15.8868287]
[1760551586419,0.001,3987.0,3986.9,5.73242512]
[1760551586613,0.001,3987.0,3986.9,5.09882512]
[1760551587520,0.4373,3987.0,3986.9,5.73242512]
[1760551587824,0.001,3987.0,3986.9,5.73242512]
[1760551588028,0.001,3987.0,3986.9,15.02421798]
[1760551588200,0.001,3987.0,3986.9,15.47271798]
[1760551589009,0.001,3987.0,3986.9,15.02421798]
[1760551589689,0.001,3987.0,3986.9,4.8698144]
[1760551591322,0.001,3987.0,3986.9,5.3183144]
[1760551591539,0.001,3987.0,3986.9,6.92521551]
[1760551592194,0.001,3987.0,3986.9,7.37371551]
[1760551592630,0.001,3987.0,3986.9,6.92521551]
[1760551593424,0.4373,3987.0,3986.9,6.92521551]
[1760551593621,0.4373,3987.0,3986.9,4.8698144]
[1760551594056,0.001,3987.0,3986.9,4.8698144]
[1760551594221,0.4373,3987.0,3986.9,4.8698144]
[1760551594734,0.001,3987.0,3986.9,4.8698144]
[1760551594934,0.4373,3987.0,3986.9,4.8698144]
[1760551595360,0.001,3987.0,3986.9,5.60762515]
[1760551595680,0.001,3987.0,3986.9,8.18062515]
[1760551596550,0.001,3987.0,3986.9,5.60762515]
[1760551596822,0.001,3987.0,3986.9,8.62912515]
[1760551597264,0.001,3987.0,3986.9,6.05612515]
[1760551597464,0.001,3987.0,3986.9,8.62912515]
[1760551598121,0.001,3987.0,3986.9,6.18092515]
[1760551598319,0.001,3987.0,3986.9,8.75392515]
[1760551599762,0.001,3987.0,3986.9,8.30542515]
[1760551599975,0.001,3987.0,3986.9,5.73242515]
[1760551601225,0.4373,3987.0,3986.9,5.73242515]
[1760551601474,0.001,3987.0,3986.9,5.73242515]
[1760551602140,0.001,3987.0,3986.9,8.30542515]
[1760551602464,0.001,3987.0,3986.9,8.75392515]
[1760551602762,0.001,3987.0,3986.9,6.18092515]
[1760551602969,0.001,3987.0,3986.9,8.75392515]
[1760551603564,0.001,3987.0,3986.9,6.18092515]
[1760551603751,0.001,3987.0,3986.9,8.75392515]
[1760551603955,0.001,3987.0,3986.9,6.18092515]
[1760551604360,0.001,3987.0,3986.9,8.75392515]
[1760551604672,0.001,3987.0,3986.9,8.30542515]
[1760551604874,0.4373,3987.0,3986.9,5.73242515]
[1760551605194,0.001,3987.0,3986.9,5.73242515]
[1760551606968,0.001,3987.0,3986.9,6.18092515]
[1760551607672,0.001,3987.0,3986.9,8.75392515]
[1760551607886,0.01102255,3990.0,3987.0,2.644]
[1760551608092,0.4363,3989.9,3988.8,2.3616]
[1760551608237,0.6517,3989.9,3989.4,0.6336]
[1760551608438,0.2154,3989.9,3989.8,0.7584]
[1760551608987,0.6495,3989.9,3989.8,3.26479129]
[1760551609578,0.2154,3989.9,3989.8,3.26479129]
[1760551609759,0.01102255,3990.0,3989.9,2.50632847]
[1760551609959,0.01102255,3990.0,3989.9,4.25939175]
[1760551610195,0.01102255,3990.0,3989.9,4.89299175]
[1760551610371,0.01102255,3990.0,3989.9,4.99272847]
[1760551611259,0.01102255,3990.0,3989.9,15.14713205]
[1760551611497,0.01102255,3990.0,3989.9,19.97525523]
[1760551611664,0.01102255,3990.0,3989.9,17.27845523]
[1760551611869,0.01102255,3990.0,3989.9,19.85045523]
[1760551612070,0.01102255,3990.0,3989.9,17.27845523]
[1760551612268,0.01102255,3990.0,3989.9,19.85045523]
[1760551612492,0.001,3990.3,3990.0,4.86786566]
[1760551612690,0.001,3990.3,3990.2,4.86774004]
[1760551612891,0.001,3990.9,3990.3,4.86767723]
[1760551613080,0.001,3990.9,3990.7,2.3616]
[1760551613404,0.001,3991.5,3991.0,2.3616]
[1760551613605,2.50541584,3991.4,3991.0,1.728]
[1760551613792,0.222,3991.0,3990.3,1.728]
[1760551614105,0.4433,3990.9,3990.5,0.6336]
[1760551614300,0.222,3990.6,3990.2,2.575]
[1760551614504,0.2284,3990.5,3990.0,4.23425666]
[1760551614673,0.2284,3990.4,3990.0,1.728]
[1760551614873,0.2284,3990.3,3990.0,1.728]
[1760551615181,0.2284,3990.2,3989.3,12.66110561]
[1760551615376,0.2166,3989.9,3989.7,0.6336]
[1760551615579,0.2166,3989.9,3989.7,2.50644933]
[1760551615904,0.2283,3990.1,3989.9,2.3616]
[1760551616100,0.2283,3990.1,3989.9,0.6336]
[1760551616600,0.2282,3990.0,3989.9,2.3616]
[1760551616806,2.50608194,3990.3,3990.0,0.6336]
[1760551617106,2.50620285,3990.1,3987.9,10.15440358]
[1760551617266,2.50652465,3989.6,3987.9,12.66195498]
[1760551617472,2.50681018,3989.2,3988.2,0.75345553]
[1760551617784,0.2258,3988.3,3988.1,1.3884055]
[1760551617993,0.2258,3988.3,3988.0,1.001]
[1760551617994,0.21,3988.2,3988.0,1.001]
[1760551618371,0.21,3988.2,3988.1,0.6336]
[1760551618570,0.21,3988.1,3988.0,1.001]
[1760551618970,0.2258,3988.3,3988.0,1.001]
[1760551619172,0.4358,3988.3,3988.1,1.728]
[1760551619496,0.4358,3988.3,3988.1,2.25165226]
[1760551619691,0.2258,3988.3,3988.1,0.52365226]
[1760551619896,0.21,3988.2,3988.0,1.001]
[1760551620096,0.21,3988.2,3988.0,2.729]
[1760551620299,0.21,3988.2,3988.1,0.6336]
[1760551620808,0.21,3988.2,3988.1,2.3616]
[1760551621011,0.4335,3989.0,3988.1,2.97368682]
[1760551621184,0.4335,3989.0,3988.3,3.14093395]
[1760551621390,0.4335,3989.0,3988.1,2.53611223]
[1760551621391,0.4335,3989.4,3988.9,2.50695171]
[1760551621592,0.2098,3989.3,3988.9,0.1248]
[1760551621774,0.2098,3989.3,3988.6,0.6336]
[1760551621974,0.2258,3988.7,3988.6,0.6336]
[1760551622308,2.94293786,3988.7,3988.2,0.6336]
[1760551622488,0.2258,3988.7,3988.6,0.1248]
[1760551623019,0.4358,3988.7,3988.6,0.1248]
[1760551623311,0.46082517,3988.7,3988.0,1.001]
[1760551623615,2.5074063,3988.2,3988.0,1.001]
[1760551623816,0.21,3988.1,3988.0,1.001]
[1760551624182,0.21,3988.1,3988.0,1.6346]
[1760551624384,0.2258,3988.7,3988.3,0.6336]
[1760551624583,0.2258,3988.7,3988.4,0.6336]
[1760551624979,0.2258,3988.7,3988.1,0.6336]
[1760551625180,0.2258,3988.7,3988.1,3.14104022]
[1760551625408,0.4335,3990.0,3988.7,0.6336]
[1760551625582,0.001,3991.5,3989.5,0.6336]
[1760551625787,0.3206,3990.5,3989.6,3.26681051]
[1760551626008,0.3206,3990.5,3990.0,0.6336]
[1760551626289,2.50570885,3990.9,3990.7,0.6336]
[1760551626290,0.2229,3990.9,3990.7,0.6336]
[1760551626581,0.2229,3990.9,3990.6,3.13947742]
[1760551626923,0.2229,3990.9,3990.5,0.6336]
[1760551627079,0.3196,3990.8,3990.5,0.6336]
[1760551627283,0.3196,3990.7,3990.0,2.3616]
[1760551627501,2.50590754,3990.6,3990.0,0.6336]
[1760551627728,0.3196,3990.5,3990.0,2.04199796]
[1760551627923,2.50596245,3990.5,3990.0,0.31399796]
[1760551628121,0.3196,3990.4,3990.0,0.31399796]
[1760551628279,0.2229,3990.9,3990.0,0.31399796]
[1760551628280,0.3196,3990.3,3990.0,0.31399796]
[1760551628485,0.3196,3990.2,3989.7,0.6336]
[1760551628681,0.3196,3990.2,3989.9,0.6336]
[1760551629035,0.3196,3990.7,3990.0,0.002]
[1760551629187,0.001,3990.5,3990.0,0.002]
[1760551629387,0.3196,3990.4,3990.0,0.002]
[1760551629614,0.3196,3990.3,3990.0,0.002]
[1760551629820,0.3196,3990.3,3990.0,2.3636]
[1760551629984,0.001,3990.5,3990.0,2.63478938]
[1760551630299,0.3196,3990.4,3990.0,0.90678938]
[1760551630500,0.001,3990.5,3990.0,0.90678938]
[1760551630711,0.001,3990.5,3990.0,0.002]
[1760551630712,0.3206,3990.5,3990.0,0.002]
[1760551630897,0.3196,3990.4,3990.0,0.002]
[1760551631287,2.50620285,3990.1,3990.0,0.002]
[1760551631493,2.82580285,3990.1,3990.0,0.002]
[1760551633294,2.82580285,3990.1,3990.0,0.1268]
[1760551634128,2.82580285,3990.1,3990.0,0.002]
[1760551634329,2.82580285,3990.1,3990.0,0.1268]
[1760551634693,2.50611085,3990.3,3990.0,0.1268]
[1760551635322,2.50611085,3990.3,3990.0,0.002]
[1760551635323,2.50620285,3990.1,3990.0,0.002]
[1760551635528,0.3196,3990.2,3990.0,0.002]
[1760551635823,2.506973,3990.5,3990.0,0.002]
[1760551635824,0.001,3990.5,3990.0,0.002]
[1760551636023,0.001,3990.5,3990.2,0.6336]
[1760551636594,0.3196,3990.4,3990.0,0.002]
[1760551636797,0.3196,3990.3,3990.0,0.002]
[1760551637207,0.001,3990.5,3990.0,0.002]
[1760551637408,0.001,3990.5,3990.1,0.6336]
[1760551637894,0.001,3990.5,3990.0,3.14182877]
[1760551638129,0.001,3990.5,3990.3,0.6336]
[1760551638297,0.001,3990.5,3990.4,3.16467457]
[1760551638492,0.001,3990.5,3990.4,3.59931443]
[1760551639056,0.001,3990.5,3990.4,3.62437457]
[1760551639336,0.001,3990.5,3990.4,0.6336]
[1760551642228,0.001,3990.5,3990.4,3.16467457]
[1760551642431,0.001,3990.5,3990.4,1.22228067]
[1760551642612,0.001,3990.5,3990.4,0.6336]
[1760551644428,0.4421,3990.5,3990.4,0.6336]
[1760551644631,0.001,3990.5,3990.4,0.6336]
[1760551645345,0.001,3990.5,3990.4,3.13961443]
[1760551645652,0.001,3990.5,3990.4,3.26441443]
[1760551645816,0.001,3990.5,3990.4,3.61496195]
[1760551646016,0.001,3990.5,3990.4,1.10894752]
[1760551646328,0.001,3990.5,3990.4,3.61496195]
[1760551646523,0.001,3990.5,3990.4,1.10894752]
[1760551646738,0.001,3990.5,3990.4,0.7584]
[1760551647119,0.001,3990.5,3990.4,0.1248]
[1760551647315,2.9730768,3990.5,3990.4,0.1248]
[1760551647621,2.50620285,3990.1,3990.0,1.003]
[1760551647821,2.94730285,3990.1,3990.0,1.003]
[1760551651950,0.4411,3990.1,3990.0,1.003]
[1760551652154,2.50614366,3990.2,3990.0,1.003]
[1760551652448,0.001,3990.5,3990.1,1.3152]
[1760551652651,0.001,3990.5,3990.3,0.6336]
[1760551652849,0.001,3990.5,3990.4,3.13961443]
[1760551653018,0.001,3990.5,3990.4,3.16467457]
[1760551653224,0.001,3990.5,3990.4,5.35827457]
[1760551653421,0.001,3990.5,3990.4,5.33321443]
[1760551653621,0.001,3990.5,3990.4,7.22790399]
[1760551655136,0.001,3990.5,3990.4,9.79890399]
[1760551655329,0.001,3990.5,3990.4,7.22790399]
[1760551655657,0.001,3990.5,3990.4,1.728]
[1760551655856,0.001,3990.5,3990.4,4.23401443]
[1760551656056,0.001,3990.5,3990.4,4.86761443]
[1760551656355,0.001,3990.5,3990.4,5.33321443]
[1760551656726,0.001,3990.5,3990.4,4.86761443]
[1760551656951,0.001,3990.5,3990.4,5.67482975]
[1760551657352,0.001,3990.5,3990.4,6.14042975]
[1760551657526,0.001,3990.5,3990.4,3.16881532]
[1760551657928,0.001,3990.5,3990.4,4.23401443]
[1760551658134,0.001,3990.5,3990.4,4.99241443]
[1760551658342,0.001,3990.5,3990.4,2.4864]
[1760551658740,0.001,3990.5,3990.4,0.7584]
[1760551659331,0.001,3990.5,3990.4,3.26441443]
[1760551659532,0.001,3990.5,3990.4,4.01142038]
[1760551659833,0.001,3990.5,3990.4,1.50540595]
[1760551660749,0.001,3990.5,3990.4,0.7584]
[1760551661266,0.001,3990.5,3990.4,3.26441443]
[1760551661560,0.001,3990.5,3990.4,0.7584]
[1760551662374,0.001,3990.5,3990.4,0.1248]
[1760551662675,0.4432,3990.5,3990.4,0.1248]
[1760551663153,2.94915163,3990.5,3990.4,0.1248]
[1760551663831,2.50601443,3990.4,3990.3,1.001]
[1760551664165,2.94821443,3990.4,3990.3,1.001]
[1760551666251,2.94821443,3990.4,3990.0,0.002]
[1760551666466,4.67621443,3990.4,3990.3,0.002]
[1760551667067,2.1702,3990.4,3989.5,1e-08]
[1760551667251,4.45581694,3989.6,3989.5,1e-08]
[1760551667647,4.89461694,3989.6,3989.5,1e-08]
[1760551668530,0.2213,3990.3,3989.5,1e-08]
[1760551668863,0.4388,3989.6,3989.5,1e-08]
[1760551669092,2.50651694,3989.6,3989.5,1e-08]
[1760551669955,2.94531694,3989.6,3989.5,1e-08]
[1760551670150,2.97034211,3989.6,3989.5,1e-08]
[1760551670342,2.94531694,3989.6,3989.5,1e-08]
[1760551671877,2.50651694,3989.6,3989.5,1e-08]
[1760551672547,2.94531694,3989.6,3989.5,1e-08]
[1760551672755,2.50651694,3989.6,3989.5,1e-08]
[1760551673169,2.94531694,3989.6,3989.5,1e-08]
[1760551673679,2.50651694,3989.6,3989.5,1e-08]
[1760551674554,2.93471694,3989.6,3989.5,1e-08]
[1760551674760,2.50651694,3989.6,3989.5,1e-08]
[1760551675688,2.93471694,3989.6,3989.5,1e-08]
[1760551675872,2.50651694,3989.6,3989.5,1e-08]
[1760551678396,12.9157028,3991.1,3989.5,1e-08]
[1760551678397,2.50592706,3990.6,3989.5,0.56860001]
[1760551678554,1.729,3990.5,3990.0,0.1248]
[1760551678755,2.50620285,3990.1,3990.0,0.1248]
[1760551679872,2.50651694,3989.6,3989.5,1e-08]
[1760551680394,2.50651694,3989.6,3989.5,0.12480001]
[1760551680559,2.50651694,3989.6,3989.5,1e-08]
[1760551680907,2.50651694,3989.6,3989.5,0.12480001]
[1760551681186,1.728,3990.3,3989.5,0.56860001]
[1760551681557,2.50651694,3989.6,3989.5,0.44380001]
[1760551681764,2.50651694,3989.6,3989.5,1e-08]
[1760551681969,2.50651694,3989.6,3989.5,0.12480001]
[1760551682375,1.728,3990.4,3989.5,0.56860001]
[1760551682576,2.93427723,3990.3,3989.5,0.12480001]
[1760551682751,2.93427723,3990.3,3989.8,0.1248]
[1760551682957,2.50632847,3989.9,3989.8,0.1248]
[1760551684494,3.15682847,3989.9,3989.8,0.1248]
[1760551685195,2.50632847,3989.9,3989.8,0.1248]
[1760551685574,3.15682847,3989.9,3989.8,0.1248]
[1760551686692,2.72862847,3989.9,3989.8,0.1248]
[1760551686895,2.50651694,3989.6,3989.5,1e-08]
[1760551687100,2.53154211,3989.6,3989.5,0.12480001]
[1760551687270,2.95974211,3989.6,3989.5,0.12480001]
[1760551687696,2.50651694,3989.6,3989.5,0.12480001]
[1760551691678,2.5072741,3990.0,3989.5,0.56860001]
[1760551691917,0.001,3990.0,3989.5,0.12480001]
[1760551692084,2.50651694,3989.6,3989.5,1e-08]
[1760551692279,2.5063351,3989.9,3989.5,1e-08]
[1760551692610,2.50646409,3989.7,3989.5,0.12480001]
[1760551692791,2.50646409,3989.7,3989.6,0.1248]
[1760551693389,0.02502517,3989.8,3989.6,0.1248]
[1760551693582,2.50645411,3989.7,3989.6,0.1248]
[1760551693979,2.50727383,3990.0,3989.6,0.1248]
[1760551694211,0.001,3990.0,3989.8,0.1248]
[1760551694580,0.001,3990.0,3989.8,0.5686]
[1760551695791,0.001,3990.0,3989.8,0.1248]
[1760551695996,0.001,3990.0,3989.9,3.70852847]
[1760551696292,0.001,3990.0,3989.9,4.33002643]
[1760551696696,0.001,3990.0,3989.9,6.05802643]
[1760551699140,0.001,3990.4,3990.3,3.13967723]
[1760551699439,0.001,3990.4,3990.3,15.27677982]
[1760551699605,0.001,3990.4,3990.3,4.86767723]
[1760551699949,0.001,3990.4,3990.3,6.11569074]
[1760551704202,0.001,3990.4,3990.3,5.67189074]
[1760551704403,0.001,3990.4,3990.3,4.86767723]
[1760551705502,0.001,3990.4,3990.3,2.3616]
[1760551705826,0.001,3990.4,3990.3,4.23407723]
[1760551706134,0.001,3990.4,3990.3,4.86767723]
[1760551706523,0.001,3990.4,3990.3,2.3616]
[1760551706950,0.001,3990.4,3990.3,4.86767723]
[1760551707763,0.001,3990.4,3990.3,0.6336]
[1760551708139,0.001,3990.4,3990.0,2.5062543]
[1760551708343,2.50607723,3990.3,3989.5,1e-08]
[1760551708552,0.3157,3990.3,3989.8,2.50634381]
[1760551708759,0.3157,3990.3,3989.5,1e-08]
[1760551708962,0.001,3990.4,3989.5,1e-08]
[1760551708963,0.2233,3989.6,3989.5,1e-08]
[1760551709448,3.04461694,3989.6,3989.5,0.12480001]
[1760551709661,0.463,3990.3,3989.5,0.12480001]
[1760551709962,2.96907877,3990.3,3989.5,0.12480001]
[1760551710160,2.50633077,3989.9,3989.5,1e-08]
[1760551710566,0.0775,3989.8,3989.5,2.50655929]
[1760551710727,0.4591,3990.2,3990.0,0.1248]
[1760551710932,0.4553,3990.1,3989.7,0.1248]
[1760551711131,0.085,3989.8,3989.5,1e-08]
[1760551711487,0.001,3990.4,3989.5,1e-08]
[1760551711488,0.001,3990.4,3990.3,0.1248]
[1760551711628,0.001,3990.4,3990.3,5.33357723]
[1760551711828,0.001,3990.4,3990.3,6.26480522]
[1760551712476,0.001,3990.4,3990.3,6.14000522]
[1760551712649,0.001,3990.4,3990.3,6.26480522]
[1760551715995,0.001,3990.4,3990.3,8.83480522]
[1760551716144,0.001,3990.4,3990.3,6.14000522]
[1760551716690,0.001,3990.4,3990.3,6.63017873]
[1760551717190,0.001,3990.4,3990.3,9.20017873]
[1760551717397,0.001,3990.4,3990.3,6.63017873]
[1760551717773,0.001,3990.4,3990.3,9.20017873]
[1760551717962,0.001,3990.4,3990.3,6.63017873]
[1760551718478,0.001,3990.4,3990.3,6.14000522]
[1760551718979,0.001,3990.4,3990.3,5.04050522]
[1760551719388,0.001,3990.4,3990.3,5.67410522]
[1760551720255,0.001,3990.4,3990.3,6.14000522]
[1760551721104,0.001,3990.4,3990.3,5.67410522]
[1760551721275,0.001,3990.4,3990.3,8.24410522]
[1760551721589,0.001,3990.4,3990.3,5.67410522]
[1760551722110,0.001,3990.4,3990.3,8.24410522]
[1760551722310,0.001,3990.4,3990.3,6.14000522]
[1760551722521,0.001,3990.4,3990.3,8.71000522]
[1760551722900,0.001,3990.4,3990.3,6.14000522]
[1760551723213,0.001,3990.4,3990.3,8.70900522]
[1760551723895,0.001,3990.4,3990.3,5.67410522]
[1760551724103,0.001,3990.4,3990.3,8.70900522]
[1760551724420,0.001,3990.4,3990.3,6.14000522]
[1760551724566,0.001,3990.4,3990.3,8.70900522]
[1760551724771,0.001,3990.4,3990.3,6.14000522]
[1760551725209,0.001,3990.4,3990.3,8.70900522]
[1760551725391,0.001,3990.4,3990.3,6.14000522]
[1760551725593,0.001,3990.4,3990.3,8.70900522]
[1760551725792,0.001,3990.4,3990.3,6.14000522]
[1760551725983,0.001,3990.4,3990.3,6.26480522]
[1760551726606,1e-08,3990.8,3990.7,4.86742604]
[1760551726808,1e-08,3990.8,3990.7,18.60376142]
[1760551726984,1e-08,3990.8,3990.7,16.50066142]
[1760551727305,1e-08,3990.8,3990.7,19.06966142]
[1760551727496,1e-08,3990.8,3990.7,16.50066142]
[1760551728603,1e-08,3990.8,3990.7,19.06966142]
[1760551729719,0.001,3991.3,3991.2,4.86711212]
[1760551729877,0.001,3991.3,3991.2,5.60438229]
[1760551730080,0.001,3991.3,3991.2,6.19508229]
[1760551730309,0.001,3991.3,3991.2,8.76408229]
[1760551730812,0.001,3991.3,3991.2,6.19508229]
[1760551731014,0.001,3991.3,3991.2,8.76408229]
[1760551731380,1e-08,3991.7,3991.6,14.99925865]
[1760551731580,0.4353,3993.3,3991.7,2.3616]
[1760551731816,0.4353,3993.3,3993.2,3.13785723]
[1760551733280,0.2268,3993.4,3993.3,3.13779452]
[1760551733483,0.2281,3993.7,3993.6,2.50400641]
[1760551733682,0.2281,3993.7,3993.6,3.13760641]
[1760551733925,0.6622,3993.7,3993.6,3.13760641]
[1760551734691,0.3,3994.0,3993.9,3.13741832]
[1760551736209,0.3,3994.0,3993.9,0.6336]
[1760551736406,0.3,3994.0,3992.2,2.72085732]
[1760551736407,0.761,3994.0,3992.7,1.728]
[1760551736607,3.16577495,3993.9,3993.1,2.50430082]
[1760551736812,0.4584,3993.8,3993.1,2.50430082]
[1760551737004,2.70737495,3993.9,3993.1,2.50430082]
[1760551737005,0.4584,3993.7,3993.2,1.728]
[1760551737325,0.4584,3993.6,3993.2,0.6336]
[1760551737527,0.4584,3993.6,3992.8,2.3616]
[1760551737528,0.4584,3993.6,3993.5,4.86566911]
[1760551737701,0.2035,3993.9,3993.7,2.50388151]
[1760551737900,0.6619,3993.9,3993.7,2.50388151]
[1760551738106,0.6619,3993.9,3993.6,0.65864006]
[1760551738107,0.2035,3993.9,3993.8,3.13748101]
[1760551738429,0.001,3993.9,3993.8,3.13748101]
[1760551740323,0.001,3993.9,3993.8,5.88426422]
[1760551740533,0.001,3993.9,3993.8,5.85922541]
[1760551740895,0.6647,3993.9,3993.8,0.6336]
[1760551741310,0.2011,3993.9,3993.8,0.6336]
[1760551741510,0.2011,3993.9,3993.8,3.26228101]
[1760551741511,0.6624,3993.9,3993.8,3.26228101]
[1760551742422,0.6624,3993.9,3993.8,0.7584]
[1760551743335,0.6624,3993.9,3993.8,3.26228101]
[1760551743650,0.001,3993.9,3993.8,3.26228101]